bitfinex-derivatives/quotes_ETHF0:USTF0_20260207
["timestamp","ask_amount","ask_price","bid_price","bid_amount"]
[1770472448053,11.31956157,2039.0,2038.1,11.07417124]
[1770472449146,10.86847639,2039.6,2038.1,11.07417124]
[1770472450549,10.86847639,2039.6,2038.2,11.75633798]
[1770472451855,10.86847639,2039.6,2038.2,14.68727377]
[1770472454053,10.86847639,2039.6,2038.4,11.75633798]
[1770472454856,10.86847639,2039.6,2038.6,11.75633798]
[1770472455249,10.86847639,2039.6,2038.6,14.68727377]
[1770472455448,10.86847639,2039.6,2038.7,11.75633798]
[1770472456662,10.85892079,2039.9,2038.7,14.68727377]
[1770472457256,10.85892079,2039.9,2038.9,11.75633798]
[1770472462163,10.85892079,2039.9,2038.8,11.75633798]
[1770472472267,10.85892079,2039.6,2038.6,11.75633798]
[1770472474871,11.10439079,2039.1,2038.1,11.76092715]
[1770472475266,11.10439079,2039.1,2038.1,0.00458917]
[1770472476269,11.64822066,2038.8,2037.7,10.95214064]
[1770472476467,11.64822066,2038.5,2037.7,10.95214064]
[1770472476866,11.64822066,2038.5,2037.5,10.95214064]
[1770472477073,11.64822066,2038.5,2037.4,10.95214064]
[1770472477270,11.64822066,2038.5,2037.1,10.95214064]
[1770472477474,11.65363632,2038.5,2037.4,0.00601822]
[1770472477669,11.64822066,2038.2,2037.4,0.00601822]
[1770472477874,11.64822066,2038.2,2037.0,10.95214064]
[1770472478973,11.64822066,2038.2,2037.0,10.95713062]
[1770472484276,11.64822066,2038.4,2037.2,10.95214064]
[1770472485382,11.64822066,2038.4,2037.5,10.95214064]
[1770472491183,11.65363632,2038.5,2037.5,10.95214064]
[1770472502688,11.65363632,2038.5,2037.3,10.95214064]
[1770472503487,11.64822066,2038.2,2037.1,2.91745656]
[1770472503692,11.89380066,2038.2,2037.0,10.95713062]
[1770472504891,11.64822066,2038.2,2037.2,10.95214064]
[1770472505190,11.64822066,2038.4,2037.4,13.8695972]
[1770472505400,11.64822066,2038.4,2037.5,10.95214064]
[1770472508693,11.64822066,2038.4,2037.6,10.97915875]
[1770472508892,11.64822066,2038.4,2037.4,13.89661531]
[1770472509097,11.64822066,2038.4,2037.5,10.97915875]
[1770472510893,0.00541566,2038.5,2037.5,10.97915875]
[1770472511094,11.78629304,2038.5,2037.6,11.14081493]
[1770472518303,11.78629304,2038.5,2037.5,2.91745656]
[1770472518507,11.78629304,2038.5,2037.5,14.05827149]
[1770472519004,11.78629304,2038.5,2037.6,11.14081493]
[1770472520515,11.78629304,2038.5,2037.5,11.14081493]
[1770472532308,12.03183304,2038.5,2037.4,11.14081493]
[1770472532515,11.78087738,2038.2,2037.4,11.14081493]
[1770472532812,11.78087738,2038.2,2037.2,11.14081493]
[1770472535914,10.67187654,2038.1,2037.2,11.14081493]
[1770472537509,10.67187654,2038.1,2036.3,2.94171671]
[1770472537510,10.67187654,2037.5,2036.3,2.94171671]
[1770472537814,10.67187654,2037.5,2036.4,11.68092489]
[1770472538510,10.91753654,2037.5,2036.4,11.68609726]
[1770472540308,10.67187654,2037.5,2036.4,11.68609726]
[1770472543409,10.67187654,2037.6,2036.4,11.68609726]
[1770472543813,10.67187654,2037.8,2036.4,11.68609726]
[1770472544215,10.67187654,2037.8,2036.5,11.68092489]
[1770472546218,13.30638167,2037.8,2036.5,11.68092489]
[1770472547209,10.67187654,2037.6,2036.5,11.68092489]
[1770472549717,8.76200655,2038.1,2037.0,11.68092489]
[1770472549922,10.67187654,2038.0,2037.0,11.68092489]
[1770472558522,10.67187654,2037.7,2036.6,11.68092489]
[1770472562422,10.91752654,2037.7,2036.6,11.68092489]
[1770472565330,10.67187654,2037.6,2036.6,11.68092489]
[1770472565733,10.67187654,2037.6,2036.7,11.68092489]
[1770472567434,11.55955399,2037.9,2036.7,11.68092489]
[1770472567631,11.55955399,2037.9,2036.8,11.07830181]
[1770472568440,11.55955399,2037.9,2036.9,11.07830181]
[1770472574239,11.12510365,2038.0,2037.1,10.73363873]
[1770472574432,11.12510365,2038.0,2037.2,10.73363873]
[1770472574633,11.12510365,2038.1,2037.2,10.73363873]
[1770472574833,11.12510365,2038.1,2037.3,10.73363873]
[1770472579036,1.83397878,2038.5,2037.3,10.73363873]
[1770472579037,11.12510365,2037.9,2037.3,10.73363873]
[1770472579234,10.32665877,2037.7,2037.2,10.73363873]
[1770472582533,10.32665877,2037.7,2037.0,10.73363873]
[1770472585342,10.32665877,2037.7,2036.7,10.73363873]
[1770472589645,10.32665877,2037.7,2036.8,10.73363873]
[1770472597350,10.32665877,2037.7,2036.9,11.05722647]
[1770472600447,11.71358508,2038.1,2037.1,11.05722647]
[1770472600648,11.71358508,2038.1,2037.1,13.99894318]
[1770472600855,11.71358508,2038.1,2037.2,11.05722647]
[1770472602852,8.76742221,2038.5,2037.1,2.94171671]
[1770472602853,11.71358508,2037.9,2037.1,2.94171671]
[1770472603048,11.71358508,2037.9,2037.0,11.05722647]
[1770472603453,11.64160692,2038.3,2037.0,11.05722647]
[1770472603454,11.71358508,2037.7,2037.0,11.05722647]
[1770472603849,1.82924584,2037.8,2037.0,11.05722647]
[1770472604049,1.82924584,2037.8,2036.8,2.94171671]
[1770472604050,11.71358508,2037.8,2037.2,11.05722647]
[1770472604852,13.54283092,2038.2,2037.4,11.05722647]
[1770472605154,11.71358508,2038.3,2037.7,11.05722647]
[1770472605852,0.00541566,2038.5,2037.7,11.05722647]
[1770472605853,11.71900074,2038.5,2037.7,11.05722647]
[1770472623376,11.71358508,2038.3,2037.5,11.05722647]
[1770472624377,11.71358508,2038.3,2037.3,11.05722647]
[1770472629083,11.71358508,2038.3,2037.4,11.15810862]
[1770472631282,11.71358508,2038.3,2037.4,14.09982533]
[1770472631487,10.91529845,2038.3,2037.5,10.91925627]
[1770472631778,11.20557738,2038.4,2037.6,10.91925627]
[1770472633979,11.20557738,2038.4,2037.7,10.91925627]
[1770472634182,11.20557738,2038.4,2037.7,13.86097298]
[1770472634384,11.20557738,2038.4,2037.8,10.91925627]
[1770472635674,11.20557738,2038.8,2038.1,10.91925627]
[1770472636785,11.21127268,2038.8,2038.1,10.92409298]
[1770472639085,11.21127268,2038.8,2038.1,0.00483671]
[1770472639282,11.21127268,2038.8,2038.1,10.92409298]
[1770472641793,0.0056953,2038.8,2038.1,10.92409298]
[1770472643285,11.20557738,2038.6,2038.1,0.00483671]
[1770472643994,11.20557738,2038.6,2038.1,10.92409298]
[1770472646695,11.21127268,2038.8,2038.1,10.92409298]
[1770472648596,11.21127268,2038.8,2038.1,0.00483671]
[1770472648796,11.21127268,2038.8,2038.1,10.92409298]
[1770472659304,10.69281124,2039.2,2038.1,10.92409298]
[1770472660201,10.69777325,2039.2,2038.2,11.8349448]
[1770472661802,10.69777325,2039.2,2038.4,14.77666151]
[1770472662203,10.69777325,2039.2,2038.4,11.8349448]
[1770472663006,10.69777325,2039.2,2038.4,14.77666151]
[1770472663203,10.69777325,2039.2,2038.4,11.8349448]
[1770472665406,10.69777325,2039.2,2038.4,16.60266971]
[1770472665596,10.69777325,2039.2,2038.5,11.8349448]
[1770472666203,0.00496201,2039.2,2038.5,11.8349448]
[1770472666408,0.00496201,2039.2,2038.5,14.77666151]
[1770472666801,0.00496201,2039.2,2038.7,11.8349448]
[1770472667001,10.69281124,2039.6,2038.7,11.8349448]
[1770472667508,10.69281124,2039.6,2038.9,11.8349448]
[1770472667898,10.69827062,2039.6,2038.9,11.8349448]
[1770472668508,10.69827062,2039.6,2039.1,11.8349448]
[1770472668701,0.00545938,2039.6,2039.1,12.13697358]
[1770472669103,10.69281124,2039.7,2039.1,12.13697358]
[1770472669303,9.89512335,2039.7,2039.3,11.8349448]
[1770472669503,9.75952051,2039.7,2039.3,11.8349448]
[1770472669910,9.75952051,2039.7,2039.1,0.30202878]
[1770472670114,9.76438715,2039.7,2039.1,11.8349448]
[1770472671401,10.69281124,2039.4,2038.9,11.8349448]
[1770472671804,12.51839075,2039.5,2038.9,11.8349448]
[1770472673311,12.51839075,2039.5,2038.8,0.30764296]
[1770472673312,10.69281124,2039.2,2038.8,11.8349448]
[1770472674101,0.00486664,2039.7,2039.0,15.48610382]
[1770472674316,10.69767788,2039.7,2039.3,11.8349448]
[1770472674508,10.69767788,2039.7,2039.1,11.8349448]
[1770472675711,0.00486664,2039.7,2039.1,11.8349448]
[1770472676605,0.00486664,2039.7,2039.3,11.8349448]
[1770472678415,1.82557951,2040.2,2039.3,11.8349448]
[1770472678714,1.82557951,2040.5,2039.8,11.8349448]
[1770472678715,10.69281124,2040.4,2039.8,11.8349448]
[1770472679409,10.69281124,2040.4,2039.8,11.83913298]
[1770472679612,10.69844651,2040.4,2039.8,11.83913298]
[1770472679807,10.69281124,2040.2,2039.8,0.00418818]
[1770472680211,0.00563527,2040.4,2039.8,11.83913298]
[1770472680416,10.69281124,2040.3,2039.8,11.83913298]
[1770472681621,0.00563527,2040.4,2039.8,11.83913298]
[1770472681824,10.69844651,2040.4,2039.8,11.83913298]
[1770472682520,10.69281124,2040.1,2039.8,11.83913298]
[1770472682922,12.51839075,2040.1,2039.3,11.8349448]
[1770472683822,12.51839075,2040.1,2039.3,11.84032569]
[1770472684015,10.69281124,2039.8,2039.3,11.84032569]
[1770472684521,10.69281124,2039.8,2039.3,0.00538089]
[1770472684723,10.69281124,2039.8,2039.3,11.84032569]
[1770472689217,11.80830861,2039.3,2038.9,11.45098759]
[1770472689423,11.80830861,2039.1,2038.7,11.45098759]
[1770472690221,11.80830861,2039.1,2038.7,11.45616265]
[1770472691122,11.41573071,2038.9,2038.7,0.00517506]
[1770472691324,0.00635767,2038.9,2038.6,9.92024458]
[1770472691825,11.42208838,2038.9,2038.6,9.92024458]
[1770472692026,0.00635767,2038.9,2038.6,9.92024458]
[1770472692225,11.42208838,2038.9,2038.6,9.92598082]
[1770472692622,0.00635767,2038.9,2038.6,9.92598082]
[1770472692829,11.41573071,2039.6,2038.6,9.92598082]
[1770472693726,11.4216559,2039.6,2038.6,9.92598082]
[1770472696034,11.4216559,2039.6,2038.8,10.85905954]
[1770472704842,11.41573071,2039.8,2038.8,10.85905954]
[1770472705046,11.41573071,2039.8,2038.9,10.85905954]
[1770472706045,11.42019434,2039.8,2038.9,10.85905954]
[1770472709445,11.42019434,2039.8,2038.8,13.80077625]
[1770472709643,11.42019434,2039.8,2038.8,10.85905954]
[1770472711347,11.42019434,2039.8,2038.7,10.85905954]
[1770472713556,11.41573071,2039.4,2038.7,10.85905954]
[1770472714154,1.82606884,2039.5,2038.6,0.00573624]
[1770472714155,11.41573071,2039.0,2038.6,0.00573624]
[1770472714658,11.41573071,2039.0,2038.6,10.86479578]
[1770472715051,10.61783233,2039.0,2038.6,10.86479578]
[1770472718059,11.53819706,2039.2,2038.6,10.86479578]
[1770472719056,11.53819706,2039.4,2038.8,10.72064733]
[1770472722560,11.53819706,2039.2,2038.6,0.00573624]
[1770472722760,11.53819706,2039.2,2038.6,10.72638357]
[1770472725066,10.74030267,2039.2,2038.6,10.72638357]
[1770472727167,10.74030267,2039.2,2038.6,12.55245241]
[1770472727367,10.74030267,2039.2,2038.6,10.72638357]
[1770472735072,9.94243159,2039.2,2038.6,10.72638357]
[1770472742981,11.53819706,2039.4,2038.6,10.72638357]
[1770472745184,10.74036414,2039.4,2038.6,10.72638357]
[1770472746088,10.74036414,2039.4,2038.7,11.56684885]
[1770472746786,11.30560303,2039.6,2038.7,11.56684885]
[1770472746983,11.30560303,2039.6,2038.8,11.56684885]
[1770472747979,4.68161929,2040.6,2039.1,2.94171671]
[1770472748177,4.68161929,2040.6,2039.0,11.56684885]
[1770472748178,12.45947317,2041.4,2040.3,1.82601054]
[1770472748380,11.30560303,2040.9,2040.4,5.83409418]
[1770472748784,23.7650762,2040.9,2040.4,5.83409418]
[1770472748988,23.7650762,2040.9,2040.5,14.97547989]
[1770472748989,23.77088115,2040.9,2040.5,14.97547989]
[1770472749289,11.30560303,2040.8,2040.4,2.94419409]
[1770472749489,11.30560303,2040.8,2040.4,7.11805323]
[1770472749888,12.45947317,2040.7,2040.4,7.11805323]
[1770472750284,11.30560303,2040.8,2040.4,7.11805323]
[1770472750588,23.7650762,2040.8,2040.4,7.11805323]
[1770472751185,11.07078586,2040.7,2040.4,0.00541127]
[1770472752989,11.07078586,2040.7,2040.1,7.0967695]
[1770472753193,0.00580495,2040.9,2040.0,7.0967695]
[1770472753194,11.07078586,2040.5,2040.0,7.0967695]
[1770472753492,11.07078586,2040.7,2040.0,7.0967695]
[1770472753794,11.07078586,2040.6,2040.0,7.0967695]
[1770472754091,11.07078586,2040.6,2040.0,7.10222751]
[1770472754290,23.53025903,2040.6,2040.0,7.10222751]
[1770472758491,11.07078586,2040.5,2040.0,7.10222751]
[1770472758697,11.07078586,2040.5,2040.0,0.00545801]
[1770472762596,11.07078586,2040.3,2039.7,5.76269622]
[1770472762995,1.94831709,2040.1,2039.7,5.76269622]
[1770472763194,11.07078586,2040.6,2039.9,5.76269622]
[1770472763589,12.45947317,2040.5,2039.9,5.76902129]
[1770472764297,11.07078586,2040.6,2039.9,5.76902129]
[1770472764500,23.53025903,2040.6,2039.9,5.76902129]
[1770472764890,11.07078586,2040.5,2039.9,5.76902129]
[1770472765090,23.53025903,2040.5,2039.9,5.76902129]
[1770472765286,11.07078586,2040.4,2040.0,5.83078066]
[1770472765496,11.07078586,2040.4,2039.9,5.33413799]
[1770472766194,11.07078586,2040.4,2040.0,5.32781292]
[1770472769200,11.07078586,2040.4,2040.0,8.26659574]
[1770472769998,11.07078586,2040.4,2040.0,5.32781292]
[1770472770198,11.07078586,2040.4,2040.0,8.26659574]
[1770472770399,12.45947317,2040.3,2040.0,8.26659574]
[1770472771199,23.53025903,2040.3,2040.0,8.26659574]
[1770472771595,23.53025903,2040.3,2040.1,6.13165065]
[1770472771790,11.07078586,2040.3,2040.0,8.26659574]
[1770472771989,11.07078586,2040.3,2040.1,6.1316314]
[1770472772196,11.07078586,2040.2,2040.0,2.93878282]
[1770472772403,7.39093331,2040.2,2040.0,1.99478282]
[1770472773098,6.59362217,2040.2,2040.0,1.99478282]
[1770472774400,6.59362217,2040.2,2040.0,4.40817423]
[1770472774598,12.45947317,2040.3,2040.0,16.13468818]
[1770472774798,11.07078586,2040.2,2040.0,4.40817423]
[1770472775195,3.99378638,2040.2,2040.1,4.40817423]
[1770472775403,23.53025903,2040.3,2040.1,4.40817423]
[1770472775594,23.53025903,2040.3,2040.2,4.40817423]
[1770472776203,23.53025903,2040.3,2040.1,4.40817423]
[1770472777302,12.45947317,2040.3,2040.1,17.55728194]
[1770472777694,23.46474475,2040.3,2040.1,5.87756565]
[1770472778996,11.00527158,2040.3,2040.1,5.87756565]
[1770472779196,11.00527158,2040.3,2040.2,5.87756565]
[1770472779396,23.46474475,2040.3,2040.2,5.87756565]
[1770472780205,11.00527158,2040.3,2040.2,5.87756565]
[1770472780701,9.88909913,2040.3,2040.2,5.87756565]
[1770472781504,11.00527158,2040.8,2040.2,5.87756565]
[1770472781803,11.00527158,2040.7,2040.3,4.40904204]
[1770472782196,1.82340201,2040.6,2039.9,0.00632507]
[1770472782401,12.21645949,2040.8,2039.9,11.8518903]
[1770472783501,11.46520092,2040.8,2039.9,11.8518903]
[1770472784401,11.46520092,2040.8,2040.0,17.2914936]
[1770472784702,11.46520092,2040.8,2040.1,5.44592837]
[1770472785006,11.46520092,2040.8,2040.2,5.44592837]
[1770472785204,11.46520092,2040.8,2040.1,11.84556523]
[1770472785405,11.46520092,2040.8,2040.2,17.27445799]
[1770472785606,11.46520092,2040.8,2040.2,11.84556523]
[1770472786796,11.46520092,2040.8,2040.0,11.84556523]
[1770472786999,11.46520092,2040.8,2040.1,17.27522295]
[1770472787197,11.46520092,2040.8,2040.2,5.42965772]
[1770472787401,11.46520092,2040.8,2040.1,11.84556523]
[1770472787599,11.46520092,2040.8,2040.2,5.42131347]
[1770472787809,11.46520092,2040.8,2040.0,11.84556523]
[1770472787999,11.46520092,2040.8,2040.1,5.4213409]
[1770472788306,11.46520092,2040.8,2040.2,5.4213409]
[1770472788504,11.46520092,2040.8,2040.0,11.84556523]
[1770472788702,11.46520092,2040.8,2040.1,5.42184269]
[1770472788909,11.46520092,2040.8,2040.2,5.42184269]
[1770472789108,11.46520092,2040.8,2040.0,11.84556523]
[1770472789309,11.46520092,2040.8,2040.1,5.42168905]
[1770472789608,11.46520092,2040.8,2040.2,5.42168905]
[1770472789904,11.46520092,2040.8,2039.9,0.00632507]
[1770472790106,1.82340708,2040.5,2040.0,11.84556523]
[1770472790305,1.82340708,2040.7,2039.9,11.8518903]
[1770472790707,11.46520092,2040.6,2039.9,11.8518903]
[1770472793311,11.46520092,2040.6,2039.9,13.67529738]
[1770472796410,0.00580495,2040.9,2040.5,11.84556523]
[1770472796617,1.82340708,2042.0,2040.9,11.84556523]
[1770472796916,1.82340708,2042.0,2041.1,11.84556523]
[1770472797523,1.8282558,2042.0,2041.1,11.84556523]
[1770472797815,0.00484872,2042.0,2041.4,13.66897231]
[1770472798123,0.00484872,2042.0,2041.4,13.67403707]
[1770472798725,0.00484872,2042.0,2041.7,11.84556523]
[1770472799526,2.62145138,2043.1,2041.7,11.84556523]
[1770472799728,8.82203321,2043.6,2041.7,11.84556523]
[1770472799729,2.62145138,2042.8,2041.7,11.84556523]
[1770472800526,2.62494047,2042.8,2041.5,11.84556523]
[1770472801822,0.00348909,2042.8,2041.8,11.84556523]
[1770472802032,0.24492,2043.7,2042.1,11.84556523]
[1770472803024,2.62145138,2043.5,2042.1,11.84556523]
[1770472803219,0.00447234,2043.7,2042.6,11.84556523]
[1770472803421,0.00447234,2043.7,2042.9,11.84556523]
[1770472803625,0.00447234,2043.7,2042.9,11.85180829]
[1770472804023,0.00447234,2043.7,2042.9,0.00624306]
[1770472804224,2.62145138,2043.5,2042.3,11.84556523]
[1770472804828,2.62145138,2043.5,2041.7,11.84556523]
[1770472805230,2.62145138,2043.5,2041.7,11.85133041]
[1770472805533,2.62145138,2043.5,2042.0,11.84556523]
[1770472806733,0.24493,2043.6,2042.0,11.84556523]
[1770472806930,2.62145138,2043.5,2042.0,11.84556523]
[1770472808334,2.62145138,2043.2,2042.0,11.84556523]
[1770472809535,2.62145138,2042.9,2042.0,11.84556523]
[1770472810730,2.86642138,2043.2,2042.0,11.84556523]
[1770472810927,2.62145138,2042.9,2041.8,11.84302212]
[1770472811528,0.24499,2043.1,2041.8,11.84302212]
[1770472811925,0.245,2043.0,2041.8,11.84302212]
[1770472813835,2.62145138,2042.9,2041.8,11.84302212]
[1770472814238,2.86647138,2042.9,2041.8,11.84302212]
[1770472814627,2.86647138,2042.9,2041.7,0.00576518]
[1770472814628,0.24502,2042.8,2041.7,0.00576518]
[1770472815337,2.62145138,2042.4,2041.7,0.00576518]
[1770472816132,0.24507,2042.5,2041.7,11.8487873]
[1770472816536,0.24507,2042.5,2041.7,0.00576518]
[1770472819633,2.62145138,2042.2,2040.8,11.84302212]
[1770472819834,2.62145138,2042.5,2040.8,11.84302212]
[1770472820034,0.24505,2042.6,2041.1,11.84302212]
[1770472820737,0.00611887,2042.6,2041.4,11.84302212]
[1770472821540,0.17428007,2042.6,2041.4,11.84302212]
[1770472822939,0.00611887,2042.6,2041.7,11.75894152]
[1770472823344,0.17428007,2042.6,2041.7,11.75894152]
[1770472825646,0.03974816,2042.4,2041.2,11.82314804]
[1770472828249,0.03974816,2042.4,2041.4,11.78421578]
[1770472828448,0.25116887,2042.6,2041.7,11.78421578]
[1770472829244,0.00611887,2042.6,2041.7,11.78421578]
[1770472835653,0.13552886,2042.6,2041.7,11.78421578]
[1770472837956,0.1068384,2042.6,2041.7,11.78421578]
[1770472839057,0.00611887,2042.6,2041.7,11.78421578]
[1770472839560,0.10071953,2043.0,2041.7,14.70648536]
[1770472839561,7.42199839,2043.0,2041.7,14.70648536]
[1770472839855,7.32127886,2043.0,2041.7,14.70648536]
[1770472840048,7.47151892,2043.1,2041.9,11.76859075]
[1770472840250,0.15024006,2042.9,2041.9,11.76859075]
[1770472840656,0.1549538,2042.9,2041.9,11.76859075]
[1770472847648,7.32127886,2042.6,2041.7,11.84371078]
[1770472848155,7.32127886,2042.5,2041.7,11.84371078]
[1770472848862,7.32127886,2042.4,2041.7,11.84371078]
[1770472849453,0.28964486,2042.3,2041.7,11.84371078]
[1770472849658,0.28964486,2042.2,2041.7,11.84371078]
[1770472855652,0.28964486,2042.2,2041.2,11.77122809]
[1770472859859,7.32127886,2042.3,2041.2,11.77122809]
[1770472860053,7.35794012,2042.3,2041.2,11.77122809]
[1770472860356,0.03666126,2042.2,2041.2,11.77122809]
[1770472865274,7.32127886,2042.2,2041.2,11.77122809]
[1770472865769,7.32127886,2042.1,2041.2,11.77122809]
[1770472865973,11.61026585,2041.6,2041.1,11.13786501]
[1770472867173,11.61026585,2041.6,2041.1,0.00556686]
[1770472867371,11.61026585,2041.6,2041.1,11.14757451]
[1770472868667,7.32127886,2042.1,2041.1,11.14757451]
[1770472868878,18.93154471,2042.2,2041.1,11.14757451]
[1770472869373,11.61026585,2042.1,2041.1,11.14757451]
[1770472870578,11.83419522,2042.0,2041.1,11.14757451]
[1770472870771,11.83419522,2041.9,2041.1,11.14757451]
[1770472872079,11.83419522,2041.8,2041.1,11.14757451]
[1770472872776,7.32127886,2041.9,2041.1,11.14757451]
[1770472872980,19.40060408,2042.0,2041.1,11.14757451]
[1770472873176,11.83419522,2042.0,2041.1,11.14757451]
[1770472875178,11.83419522,2041.9,2041.1,11.14757451]
[1770472876484,19.15547408,2042.0,2041.1,11.14757451]
[1770472877079,7.32127886,2042.0,2041.1,11.14757451]
[1770472877280,19.15547408,2042.2,2041.1,11.14757451]
[1770472877483,7.32127886,2042.2,2041.1,11.14757451]
[1770472877679,7.32127886,2042.4,2041.1,11.14757451]
[1770472877879,18.10318733,2042.6,2041.3,11.13164226]
[1770472878085,7.32127886,2042.7,2041.4,11.13164226]
[1770472878483,11.83419522,2042.6,2041.4,11.13164226]
[1770472878683,11.83419522,2042.5,2041.4,11.13164226]
[1770472882179,19.15547408,2042.3,2041.4,11.13164226]
[1770472882383,11.83419522,2042.2,2041.4,11.13164226]
[1770472884290,11.83419522,2042.0,2041.4,11.13164226]
[1770472884684,11.83419522,2041.9,2041.2,11.13164226]
[1770472886092,11.83419522,2041.9,2041.1,0.00556686]
[1770472886294,19.15547408,2041.8,2041.1,0.00556686]
[1770472886481,11.83419522,2041.7,2041.1,0.00556686]
[1770472889990,7.32127886,2041.8,2041.1,11.13720912]
[1770472890186,19.15547408,2041.9,2041.1,11.13720912]
[1770472891696,11.83419522,2041.8,2041.1,11.13720912]
[1770472892097,19.15547408,2041.8,2041.1,11.13720912]
[1770472893001,11.83419522,2041.8,2041.1,11.13720912]
[1770472896896,18.6247311,2041.7,2041.1,0.00556686]
[1770472897201,11.30345224,2041.6,2041.1,0.00556686]
[1770472899798,11.30345224,2041.6,2040.9,10.98302958]
[1770472900008,11.30345224,2041.5,2040.9,10.98302958]
[1770472900497,11.30345224,2041.4,2040.5,10.98302958]
[1770472900900,11.30879467,2041.4,2040.5,10.98822195]
[1770472902503,7.32662129,2041.4,2040.5,10.98822195]
[1770472902699,11.30345224,2041.3,2040.5,10.98822195]
[1770472908105,7.32662129,2041.4,2040.5,10.98822195]
[1770472908409,0.00534243,2041.4,2040.5,10.98822195]
[1770472908605,11.30879467,2041.4,2040.5,10.98822195]
[1770472909005,0.00534243,2041.4,2040.5,10.98822195]
[1770472910506,11.30879467,2041.4,2040.5,10.98822195]
[1770472912104,11.30345224,2041.3,2040.5,10.98822195]
[1770472912409,11.30345224,2041.2,2040.5,10.98822195]
[1770472912910,11.30345224,2041.1,2040.5,10.98822195]
[1770472916808,18.6247311,2041.0,2040.5,10.98822195]
[1770472917009,11.30345224,2040.9,2040.5,10.98822195]
[1770472917811,18.6247311,2041.0,2040.5,10.98822195]
[1770472918205,11.30345224,2040.9,2040.5,0.00519237]
[1770472918610,18.6247311,2041.0,2040.5,10.98822195]
[1770472918815,16.14331207,2041.2,2040.5,10.98822195]
[1770472919116,7.32127886,2041.3,2040.5,10.98822195]
[1770472919311,0.00534243,2041.4,2040.5,13.61257628]
[1770472919511,0.00534243,2041.4,2040.5,10.98822195]
[1770472920217,18.6247311,2041.9,2040.6,10.98302958]
[1770472920607,7.32127886,2041.9,2040.6,10.98302958]
[1770472920807,18.6247311,2042.0,2041.0,10.98302958]
[1770472921113,11.30345224,2042.0,2041.0,10.98302958]
[1770472921313,11.30965382,2042.0,2041.0,10.98302958]
[1770472921513,0.00620158,2042.0,2041.0,10.98302958]
[1770472921814,7.32127886,2042.5,2041.3,10.98302958]
[1770472922423,18.6247311,2042.6,2041.3,10.98302958]
[1770472922918,18.62917077,2042.6,2041.3,10.98302958]
[1770472923114,11.30789191,2042.6,2041.3,10.98302958]
[1770472925118,0.00443967,2042.6,2041.3,10.98302958]
[1770472925419,11.30345224,2043.0,2041.9,10.98302958]
[1770472925624,11.30345224,2043.2,2042.1,10.98302958]
[1770472926219,11.00542383,2043.3,2042.1,10.98302958]
[1770472926417,11.25035383,2043.6,2042.1,10.98841355]
[1770472926721,11.00542383,2043.7,2042.4,11.74552684]
[1770472927521,11.01055532,2043.7,2042.4,11.74552684]
[1770472928414,0.00513149,2043.7,2042.4,11.74552684]
[1770472928613,11.01055532,2043.7,2042.4,11.74552684]
[1770472928815,0.00513149,2043.7,2042.4,11.74552684]
[1770472929317,11.01055532,2043.7,2042.4,11.74552684]
[1770472929821,11.01055532,2043.7,2042.4,14.36988117]
[1770472930019,0.00513149,2043.7,2042.4,14.36988117]
[1770472930523,10.77208641,2044.3,2042.8,10.93483023]
[1770472931426,10.77622179,2044.3,2043.1,10.93483023]
[1770472931618,0.00413538,2044.3,2043.1,10.93483023]
[1770472932818,0.07926122,2044.6,2043.4,10.93483023]
[1770472933320,10.85134763,2044.6,2043.4,11.23844541]
[1770472933824,10.85509912,2044.6,2043.4,11.23844541]
[1770472935423,0.08301271,2044.6,2043.4,11.23844541]
[1770472935725,10.85509912,2044.6,2043.4,11.23844541]
[1770472939621,0.2447,2045.5,2043.4,11.23844541]
[1770472939820,10.77208641,2045.4,2044.2,10.93483023]
[1770472940026,10.77208641,2045.1,2044.2,10.93483023]
[1770472940329,2.86905433,2045.5,2044.2,10.93483023]
[1770472940528,10.77208641,2045.4,2044.2,10.93483023]
[1770472940728,10.7760247,2045.4,2044.2,10.94034994]
[1770472942030,10.77208641,2046.1,2044.8,10.93483023]
[1770472943027,10.77712237,2046.1,2044.8,10.93483023]
[1770472943719,10.77208641,2045.8,2044.8,10.93483023]
[1770472944430,10.77208641,2045.3,2044.3,10.93483023]
[1770472944619,10.77208641,2045.0,2044.2,0.00551971]
[1770472944925,2.62435433,2044.8,2044.2,0.00551971]
[1770472945128,10.77208641,2044.7,2043.9,10.93483023]
[1770472946018,10.77208641,2044.7,2043.9,0.00364484]
[1770472946428,10.77208641,2044.4,2042.8,10.93483023]
[1770472946729,10.77208641,2044.4,2042.8,11.23662784]
[1770472946730,10.77208641,2044.1,2042.8,11.23662784]
[1770472947331,10.77604913,2044.1,2042.8,11.24258849]
[1770472947533,10.77604913,2044.1,2042.8,10.94079088]
[1770472947727,10.77208641,2043.8,2042.8,10.94079088]
[1770472948029,10.77208641,2043.5,2042.8,0.00596065]
[1770472948333,10.77208641,2043.5,2042.4,10.93483023]
[1770472949124,10.77208641,2043.2,2042.4,0.00421808]
[1770472949430,10.77208641,2042.9,2042.4,0.00421808]
[1770472949630,10.77208641,2042.9,2042.1,10.93483023]
[1770472950333,10.77208641,2043.2,2042.1,10.93483023]
[1770472950529,10.77208641,2043.5,2042.1,13.55918456]
[1770472950725,10.77208641,2043.5,2042.1,13.56485817]
[1770472950928,10.77208641,2043.5,2042.1,10.94050384]
[1770472952040,10.77208641,2043.7,2042.4,10.93483023]
[1770472957735,11.64183952,2043.9,2042.4,10.93483023]
[1770472957939,14.26619385,2043.9,2042.4,10.93483023]
[1770472958235,11.64183952,2043.5,2042.4,10.93483023]
[1770472959239,11.64183952,2043.8,2042.4,13.55918456]
[1770472960940,11.64183952,2043.8,2042.4,10.93483023]
[1770472962543,11.64183952,2043.5,2042.4,10.93483023]
[1770472966741,11.64183952,2043.7,2042.4,10.93483023]
[1770472968644,0.00396272,2044.1,2042.7,11.49935664]
[1770472968645,11.64183952,2043.9,2042.7,11.49935664]
[1770472970245,14.26619385,2043.9,2042.7,11.49935664]
[1770472970652,14.51108385,2043.9,2042.7,11.49935664]
[1770472971546,11.88672952,2043.9,2042.7,11.49935664]
[1770472973349,11.64183952,2043.8,2042.7,11.49935664]
[1770472974444,11.64183952,2043.7,2042.7,11.49935664]
[1770472974641,11.64183952,2043.6,2042.5,11.49935664]
[1770472974946,11.64183952,2043.5,2042.5,11.49935664]
[1770472976351,11.64183952,2043.4,2042.5,11.49935664]
[1770472977255,11.64183952,2043.3,2042.5,11.49935664]
[1770472978044,11.64183952,2043.2,2042.5,11.49935664]
[1770472978249,11.64183952,2043.2,2042.2,11.49935664]
[1770472978250,11.64183952,2043.1,2042.2,11.49935664]
[1770472978647,11.64183952,2043.2,2042.2,11.49935664]
[1770472979054,11.64183952,2043.1,2042.2,11.49935664]
[1770472981545,11.64183952,2043.3,2042.3,11.49935664]
[1770472982253,11.64183952,2043.2,2042.3,11.49935664]
[1770472983455,8.82203321,2043.5,2042.4,11.49935664]
[1770472983456,7.32127886,2043.5,2042.4,11.49935664]
[1770472983656,18.96311838,2043.6,2042.4,11.49935664]
[1770472984059,11.64183952,2043.5,2042.4,11.49935664]
[1770472985356,7.32127886,2043.6,2042.4,11.49935664]
[1770472985554,7.32127886,2043.7,2042.6,11.49935664]
[1770472985770,18.96311838,2043.8,2042.6,11.49935664]
[1770472985965,10.85111474,2043.7,2042.6,11.49935664]